fUSD/lending_fUSD_20240301
["ID","MTS","AMOUNT","RATE_DAILY","PERIOD"]
[315934221,1709291231348,-151.0,0.00022191,7]
[315934222,1709291231376,-151.0,0.00022191,7]
[315934223,1709291231400,-500.0,0.00022191,2]
[315934224,1709291231425,-500.0,0.00022191,2]
[315934225,1709291231450,-151.0,0.00022191,7]
[315934226,1709291231476,-1010.27,0.00022191,2]
[315934227,1709291231501,-548.54,0.00022191,2]
[315934228,1709291231526,-152.52863321,0.00022191,2]
[315934229,1709291231551,-1349.79,0.00022191,2]
[315934230,1709291231576,-500.0,0.00022191,2]
[315934231,1709291231600,-500.0,0.00022191,2]
[315934232,1709291231625,-500.0,0.00022191,2]
[315934233,1709291231651,-500.0,0.00022191,2]
[315934234,1709291231676,-500.0,0.00022191,2]
[315934235,1709291231701,-1266.98,0.00022191,2]
[315934236,1709291231727,-3581.95,0.00022191,2]
[315934237,1709291231752,-500.0,0.00022191,2]
[315934238,1709291231776,-1152.47,0.00022191,2]
[315934239,1709291231800,-600.7,0.00022191,2]
[315934240,1709291231825,-845.52,0.00022191,2]
[315934241,1709291231851,-1328.56,0.00022191,2]
[315934242,1709291231875,-500.0,0.00022191,2]
[315934243,1709291231899,-540.64,0.00022191,2]
[315934244,1709291231923,-325.63,0.00022191,2]
[315934245,1709291231947,-500.0,0.00022191,2]
[315934246,1709291231971,-1435.09,0.00022191,2]
[315934247,1709291231996,-150.0,0.00022191,2]
[315934248,1709291232021,-500.0,0.00022191,2]
[315934249,1709291232045,-813.09,0.00022191,2]
[315934250,1709291232069,-500.0,0.00022191,2]
[315934251,1709291232094,-1540.01,0.00022191,2]
[315934252,1709291232119,-151.0,0.00022191,2]
[315934253,1709291232144,-151.0,0.00022191,2]
[315934254,1709291232169,-794.53,0.00022191,2]
[315934255,1709291232194,-500.0,0.00022191,2]
[315934256,1709291232220,-500.0,0.00022191,2]
[315934257,1709291232246,-500.0,0.00022191,2]
[315934258,1709291232273,-557.43,0.00022191,2]
[315934259,1709291232297,-500.0,0.00022191,2]
[315934260,1709291232322,-503.25286185,0.00022191,2]
[315934261,1709291232345,-500.0,0.00022191,2]
[315934262,1709291232371,-1113.42,0.00022191,2]
[315934263,1709291232397,-1192.16714317,0.00022191,2]
[315934264,1709291232508,-1098.14285683,0.00022191,2]
[315934265,1709291232533,-500.0,0.00022191,2]
[315934266,1709291232558,-570.93,0.00022191,2]
[315934267,1709291232583,-1691.99,0.00022191,2]
[315934268,1709291232608,-500.0,0.00022191,2]
[315934269,1709291232634,-7505.16,0.00022191,2]
[315934270,1709291232659,-500.0,0.00022191,2]
[315934271,1709291232686,-612.32,0.00022191,2]
[315934272,1709291232710,-824.58,0.00022191,2]
[315934273,1709291232736,-954.47,0.00022191,2]
[315934274,1709291232760,-500.0,0.00022191,2]
[315934275,1709291232784,-500.0,0.00022191,2]
[315934276,1709291232808,-500.0,0.00022191,2]
[315934277,1709291232834,-1223.07,0.00022191,2]
[315934278,1709291232858,-500.0,0.00022191,2]
[315934279,1709291232883,-627.81,0.00022191,2]
[315934280,1709291232908,-798.56,0.00022191,2]
[315934281,1709291232937,-1591.18,0.00022191,2]
[315934282,1709291232961,-773.43,0.00022191,2]
[315934283,1709291232986,-500.0,0.00022191,2]
[315934284,1709291233010,-500.0,0.00022191,2]
[315934285,1709291233034,-3033.94,0.00022191,2]
[315934286,1709291233058,-500.0,0.00022191,2]
[315934287,1709291233085,-681.4,0.00022191,2]
[315934288,1709291233109,-500.0,0.00022191,2]
[315934289,1709291233135,-500.0,0.00022191,2]
[315934290,1709291233160,-500.0,0.00022191,2]
[315934291,1709291233185,-733.85,0.00022191,2]
[315934292,1709291233209,-1309.14,0.00022191,2]
[315934293,1709291233235,-1217.7,0.00022191,2]
[315934294,1709291233260,-973.87,0.00022191,2]
[315934295,1709291233285,-500.0,0.00022191,2]
[315934296,1709291233309,-4544.11,0.00022191,2]
[315934297,1709291233395,-553.09,0.00022191,2]
[315934298,1709291233419,-500.0,0.00022191,2]
[315934299,1709291233443,-500.0,0.00022191,2]
[315934300,1709291233466,-500.0,0.00022191,2]
[315934301,1709291233490,-500.0,0.00022191,2]
[315934302,1709291233515,-500.0,0.00022191,2]
[315934303,1709291233540,-500.0,0.00022191,2]
[315934304,1709291233565,-1568.73,0.00022191,2]
[315934305,1709291233590,-500.0,0.00022191,2]
[315934306,1709291233614,-675.7,0.00022191,2]
[315934307,1709291233638,-500.0,0.00022191,2]
[315934308,1709291233662,-545.69,0.00022191,2]
[315934309,1709291233686,-3751.39,0.00022191,2]
[315934310,1709291233712,-811.49,0.00022191,2]
[315934311,1709291233740,-6437.93,0.00022191,2]
[315934312,1709291233764,-500.0,0.00022191,2]
[315934313,1709291233787,-203.51887389,0.00022191,2]
[315934314,1709291233811,-729.87,0.00022191,2]
[315934315,1709291233835,-268.04690946,0.00022191,2]
[315934316,1709291233861,-2062.18,0.00022191,2]
[315934317,1709291233886,-500.0,0.00022191,2]
[315934318,1709291233910,-500.0,0.00022191,2]
[315934319,1709291233934,-651.21,0.00022191,2]
[315934320,1709291233959,-742.25,0.00022191,2]
[315934321,1709291233983,-4485.14,0.00022191,2]
[315934322,1709291234009,-797.11,0.00022191,2]
[315934323,1709291234034,-1069.78,0.00022191,2]
[315934324,1709291234059,-5799.88,0.00022191,2]
[315934325,1709291234085,-11917.68,0.00022191,2]
[315934326,1709291234109,-500.0,0.00022191,2]
[315934327,1709291234134,-500.0,0.00022191,2]
[315934328,1709291234161,-795.61,0.00022191,2]
[315934329,1709291234188,-500.0,0.00022191,2]
[315934330,1709291234212,-1123.67,0.00022191,2]
[315934331,1709291234240,-1600.76,0.00022191,2]
[315934332,1709291234266,-2087.74,0.00022191,2]
[315934333,1709291234290,-1557.52,0.00022191,2]
[315934334,1709291234317,-830.45,0.00022191,2]
[315934335,1709291234342,-1835.78,0.00022191,2]
[315934336,1709291234366,-500.0,0.00022191,2]
[315934337,1709291234390,-500.0,0.00022191,2]
[315934338,1709291234414,-699.06,0.00022191,2]
[315934339,1709291234439,-633.07135982,0.00022191,2]
[315934340,1709291234843,-680.43864018,0.00022191,2]
[315934341,1709291234867,-1792.83,0.00022191,2]
[315934342,1709291234891,-500.0,0.00022191,2]
[315934343,1709291234916,-1074.65,0.00022191,2]
[315934344,1709291234940,-831.43,0.00022191,2]
[315934345,1709291234964,-500.0,0.00022191,2]
[315934346,1709291234988,-769.41,0.00022191,2]
[315934347,1709291235013,-751.7,0.00022191,2]
[315934348,1709291235038,-1695.63,0.00022191,2]
[315934349,1709291235062,-500.0,0.00022191,2]
[315934350,1709291235087,-500.0,0.00022191,2]
[315934351,1709291235112,-500.0,0.00022191,2]
[315934352,1709291235140,-552.48,0.00022191,2]
[315934353,1709291235166,-1241.46,0.00022191,2]
[315934354,1709291235191,-841.83,0.00022191,2]
[315934355,1709291235218,-500.0,0.00022191,2]
[315934356,1709291235251,-17883.41,0.00022191,2]
[315934357,1709291235278,-500.0,0.00022191,2]
[315934358,1709291235305,-500.0,0.00022191,2]
[315934359,1709291235333,-500.0,0.00022191,2]
[315934360,1709291235360,-3510.23,0.00022191,2]
[315934361,1709291235389,-8135.05,0.00022191,2]
[315934362,1709291235415,-1728.78,0.00022191,2]
[315934363,1709291235442,-500.0,0.00022191,2]
[315934364,1709291235469,-2513.34,0.00022191,2]
[315934365,1709291235496,-500.0,0.00022191,2]
[315934366,1709291235523,-500.0,0.00022191,2]
[315934367,1709291235550,-538.16,0.00022191,2]
[315934368,1709291235578,-500.0,0.00022191,2]
[315934369,1709291235604,-935.19,0.00022191,2]
[315934370,1709291235630,-570.11,0.00022191,2]
[315934371,1709291235657,-6127.03,0.00022191,2]
[315934372,1709291235685,-1667.0,0.00022191,2]
[315934373,1709291235712,-2181.17,0.00022191,2]
[315934374,1709291235739,-561.17,0.00022191,2]
[315934375,1709291235766,-500.0,0.00022191,2]
[315934376,1709291235794,-1245.36,0.00022191,2]
[315934377,1709291235822,-9071.71,0.00022191,2]
[315934378,1709291235849,-500.0,0.00022191,2]
[315934379,1709291235882,-500.0,0.00022191,2]
[315934380,1709291235910,-957.86,0.00022191,2]
[315934381,1709291235937,-500.0,0.00022191,2]
[315934382,1709291235963,-500.0,0.00022191,2]
[315934383,1709291235989,-500.0,0.00022191,2]
[315934384,1709291236016,-759.42,0.00022191,2]
[315934385,1709291236043,-528.11,0.00022191,2]
[315934386,1709291236070,-500.0,0.00022191,2]
[315934387,1709291236096,-1167.7,0.00022191,2]
[315934388,1709291236123,-500.0,0.00022191,2]
[315934389,1709291236152,-500.0,0.00022191,2]
[315934390,1709291236179,-500.0,0.00022191,2]
[315934391,1709291236207,-528.92,0.00022191,2]
[315934392,1709291236234,-500.0,0.00022191,2]
[315934393,1709291236266,-523.89,0.00022191,2]
[315934394,1709291236300,-1675.05,0.00022191,2]
[315934395,1709291236338,-585.22,0.00022191,2]
[315934396,1709291236367,-1495.89,0.00022191,2]
[315934397,1709291236400,-1573.74,0.00022191,2]
[315934398,1709291236435,-1703.84422942,0.00022194,2]
[315934399,1709291236467,-9600.7871304,0.000222,2]
[315934400,1709291236602,-2840.84372854,0.000222,2]
[315934401,1709291236633,-424.53,0.000222,2]
[315934402,1709291236665,-848.01,0.000222,2]
[315934403,1709291236696,-150.0,0.000222,2]
[315934404,1709291236728,-50000.0,0.00022207,2]
[315934405,1709291236759,-34076.88458836,0.00022207,2]
[315934406,1709291236791,-3688.25719809,0.00022207,2]
[315934407,1709291236824,-7971.47448501,0.00022207,2]
[315934408,1709291236906,-42028.52551499,0.00022207,2]
[315934409,1709291236933,-224.392604,0.00022207,7]
[315934410,1709291236964,-291.273811,0.00022207,7]
[315934411,1709291236994,-151.0,0.00022207,7]
[315934412,1709291237024,-151.0,0.00022207,7]
[315934413,1709291237052,-50000.0,0.00022207,2]
[315934414,1709291237080,-151.0,0.00022207,2]
[315934415,1709291237111,-151.0,0.00022207,2]
[315934416,1709291237143,-6851.80807001,0.00022207,2]
[315934417,1709291237221,-1239.22067887,0.00021916,2]
[315934418,1709291237252,-2040.88750929,0.00022207,2]
[315934419,1709291237279,-157.65969081,0.00022215,2]
[315934420,1709291237307,-500.0,0.00022218,2]
[315934421,1709291237338,-17681.82319344,0.00022219,4]
[315934422,1709291237368,-50000.0,0.00022219,2]
[315934423,1709291237397,-4155.71961151,0.00022219,2]
[315934424,1709291237427,-24224.68931608,0.00022219,2]
[315934425,1709291237745,-25775.31068392,0.00022219,2]
[315934426,1709291237774,-29265.8052406,0.00022219,2]
[315934427,1709291237802,-41188.70773702,0.00022219,2]
[315934428,1709291237831,-200.0,0.00022222,2]
[315934429,1709291237861,-254.98,0.00022264,2]
[315934430,1709291237889,-476.87,0.00022264,2]
[315934431,1709291237916,-200.0,0.00022273,2]
[315934432,1709291237943,-800.0,0.00022273,2]
[315934433,1709291237970,-200.0,0.00022273,2]
[315934434,1709291237996,-500.0,0.00022273,2]
[315934435,1709291238022,-200.0,0.00022273,2]
[315934436,1709291238049,-302.4,0.00022275,2]
[315934437,1709291238077,-157.2,0.00022283,2]
[315934438,1709291238104,-222.62,0.00022297,2]
[315934439,1709291238132,-256.10633846,0.00022299,2]
[315934477,1709291451745,-193.08461262,0.00019899,2]
[315934478,1709291451754,-2273.026959,0.000199,2]
[315934479,1709291451766,-677.98580415,0.00019999,2]
[315934480,1709291451775,-3744.97383601,0.0002,2]
[315934481,1709291451785,-1500.0,0.000204,2]
[315934482,1709291451795,-1500.0,0.000209,2]
[315934483,1709291451804,-159.60156022,0.00021088,2]
[315934484,1709291451814,-209.64,0.00021135,2]
[315934485,1709291451823,-830.05,0.00021188,2]
[315934486,1709291451833,-250.0,0.00021355,2]
[315934487,1709291451842,-487.72068571,0.000214,2]
[315934488,1709291452208,-299.75,0.000214,2]
[315934489,1709291452235,-573.55033462,0.000214,2]
[315934490,1709291452269,-138.97897967,0.000214,2]
[315934491,1709291452280,-206.0,0.00021434,2]
[315934492,1709291452291,-962.02132488,0.00021816,2]
[315934493,1709291452300,-1898.19596695,0.00021817,2]
[315934494,1709291452312,-7853.50972279,0.00021817,2]
[315934495,1709291453678,-18724.5804061,0.00021817,2]
[315934496,1709291453689,-5368.04950416,0.00021817,2]
[315934497,1709291453699,-2993.813,0.00021817,2]
[315934498,1709291453708,-1500.0,0.000219,2]
[315934499,1709291453718,-2614.27401795,0.00021917,2]
[315934500,1709291453730,-396.92598205,0.00021917,2]
[315934501,1709291453740,-500.0,0.00021917,2]
[315934502,1709291453749,-500.0,0.00021917,2]
[315934503,1709291453759,-432.69974534,0.00021917,2]
[315934504,1709291453771,-254.84025466,0.00021917,2]
[315934505,1709291453781,-1080.3,0.00021917,2]
[315934506,1709291453790,-500.0,0.00021917,2]
[315934507,1709291453799,-161.34884455,0.00021917,2]
[315934508,1709291453811,-514.07115545,0.00021917,2]
[315934509,1709291453820,-685.34,0.00021917,2]
[315934510,1709291453829,-1964.07,0.00021917,2]
[315934511,1709291453838,-500.0,0.00021917,2]
[315934512,1709291453847,-468.67832868,0.00021917,2]
[315934513,1709291453859,-3353.90167132,0.00021917,2]
[315934514,1709291453868,-500.0,0.00021917,2]
[315934515,1709291453877,-1056.43,0.00021917,2]
[315934516,1709291453887,-528.88,0.00021917,2]
[315934517,1709291453897,-563.48,0.00021917,2]
[315934518,1709291453907,-1354.18,0.00021917,2]
[315934519,1709291453916,-2230.92,0.00021917,2]
[315934520,1709291453926,-391.30008049,0.00021917,2]
[315934521,1709291453938,-238.75991951,0.00021917,2]
[315934522,1709291453948,-471.10005218,0.00021917,2]
[315934523,1709291454005,-28.89994782,0.00021917,2]
[315934524,1709291454016,-1315.5,0.00021917,2]
[315934525,1709291454026,-500.0,0.00021917,2]
[315934526,1709291454035,-500.0,0.00021917,2]
[315934527,1709291454045,-369.78207918,0.00021917,2]
[315934528,1709291454054,-1419.42,0.00021917,2]
[315934529,1709291454063,-500.0,0.00021917,2]
[315934530,1709291454073,-392.19228812,0.00021917,2]
[315934531,1709291454082,-500.0,0.00021917,2]
[315934532,1709291454091,-1388.31,0.00021917,2]
[315934533,1709291454102,-500.0,0.00021917,2]
[315934534,1709291454111,-3575.12,0.00021917,2]
[315934535,1709291454120,-500.0,0.00021917,2]
[315934536,1709291454130,-2554.41,0.00021917,2]
[315934537,1709291454139,-500.0,0.00021917,2]
[315934538,1709291454148,-563.1,0.00021917,2]
[315934539,1709291454158,-500.0,0.00021917,2]
[315934540,1709291454167,-500.0,0.00021917,2]
[315934541,1709291454177,-869.92,0.00021917,2]
[315934542,1709291454187,-836.06,0.00021917,2]
[315934543,1709291454197,-500.0,0.00021917,2]
[315934544,1709291454208,-707.79,0.00021917,2]
[315934545,1709291454217,-500.0,0.00021917,2]
[315934546,1709291454227,-500.0,0.00021917,2]
[315934547,1709291454241,-1173.07,0.00021917,2]
[315934548,1709291454250,-2978.5,0.00021917,2]
[315934549,1709291454260,-1395.63,0.00021917,2]
[315934550,1709291454272,-1411.67,0.00021917,2]
[315934551,1709291454282,-500.0,0.00021917,2]
[315934552,1709291454292,-546.78,0.00021917,2]
[315934553,1709291454302,-567.59,0.00021917,2]
[315934554,1709291454311,-1550.99,0.00021917,2]
[315934555,1709291454321,-755.87,0.00021917,2]
[315934556,1709291454331,-1418.7,0.00021917,2]
[315934557,1709291454340,-500.0,0.00021917,2]
[315934558,1709291454350,-500.0,0.00021917,2]
[315934559,1709291454359,-500.0,0.00021917,2]
[315934560,1709291454370,-670.46,0.00021917,2]
[315934561,1709291454379,-500.0,0.00021917,2]
[315934562,1709291454390,-575.5,0.00021917,2]
[315934563,1709291454399,-732.02,0.00021917,2]
[315934564,1709291454410,-500.0,0.00021917,2]
[315934565,1709291454419,-647.74,0.00021917,2]
[315934566,1709291454431,-684.55,0.00021917,2]
[315934567,1709291454443,-500.0,0.00021917,2]
[315934568,1709291454454,-500.0,0.00021917,2]
[315934569,1709291454465,-628.5,0.00021917,2]
[315934570,1709291454476,-2758.35,0.00021917,2]
[315934571,1709291454486,-672.7,0.00021917,2]
[315934572,1709291454496,-500.0,0.00021917,2]
[315934573,1709291454507,-737.46,0.00021917,2]
[315934574,1709291454518,-500.0,0.00021917,2]
[315934575,1709291454527,-1200.05,0.00021917,2]
[315934576,1709291454537,-500.0,0.00021917,2]
[315934577,1709291454547,-510.97,0.00021917,2]
[315934578,1709291454556,-500.0,0.00021917,2]
[315934579,1709291454566,-500.0,0.00021917,2]
[315934580,1709291454575,-500.0,0.00021917,2]
[315934581,1709291454584,-500.0,0.00021917,2]
[315934582,1709291454594,-1438.0,0.00021917,2]
[315934583,1709291454603,-520.04,0.00021917,2]
[315934584,1709291454613,-500.0,0.00021917,2]
[315934585,1709291454622,-500.0,0.00021917,2]
[315934586,1709291454633,-1121.15,0.00021917,2]
[315934587,1709291454643,-535.78,0.00021917,2]
[315934588,1709291454652,-500.0,0.00021917,2]
[315934589,1709291454662,-500.0,0.00021917,2]
[315934590,1709291454671,-791.94,0.00021917,2]
[315934591,1709291454712,-1031.34290492,0.00021917,2]
[315934592,1709291454735,-858.98709508,0.00021917,2]
[315934593,1709291454744,-500.0,0.00021917,2]
[315934594,1709291454754,-2512.83025221,0.00021917,2]
[315934595,1709291454781,-445.94319877,0.00021917,2]
[315934596,1709291455693,-2332.90654902,0.00021917,2]
[315934597,1709291455702,-38.85052187,0.00021917,2]
[315934598,1709291455714,-315.6,0.00021917,2]
[315934599,1709291455726,-471.21947813,0.00021917,2]
[315934600,1709291455736,-913.65,0.00021917,2]
[315934601,1709291455746,-398.15,0.00021917,2]
[315934602,1709291455759,-2781.11,0.00021917,2]
[315934603,1709291455770,-500.0,0.00021917,2]
[315934604,1709291455780,-1116.23,0.00021917,2]
[315934605,1709291455790,-761.25,0.00021917,2]
[315934606,1709291455800,-500.0,0.00021917,2]
[315934607,1709291455809,-2580.28078687,0.00021917,2]
[315934608,1709291455821,-367.48630614,0.00021917,2]
[315934609,1709291455839,-2368.78290699,0.00021917,2]
[315934610,1709291455848,-500.0,0.00021917,2]
[315934611,1709291455858,-301.58278257,0.00021917,2]
[315934612,1709291455869,-198.41721743,0.00021917,2]
[315934613,1709291455878,-507.0,0.00021917,2]
[315934614,1709291455887,-1682.8,0.00021917,2]
[315934615,1709291455897,-500.0,0.00021917,2]
[315934616,1709291455906,-177.29003257,0.00021917,2]
[315934617,1709291455922,-257.925626,0.00021917,2]
[315934618,1709291455943,-549.88434143,0.00021917,2]
[315934619,1709291455953,-3438.78,0.00021917,2]
[315934620,1709291455961,-500.0,0.00021917,2]
[315934621,1709291455970,-500.0,0.00021917,2]
[315934622,1709291455980,-500.0,0.00021917,2]
[315934623,1709291455989,-500.0,0.00021917,2]
[315934624,1709291455998,-1643.42,0.00021917,2]
[315934625,1709291456008,-500.0,0.00021917,2]
[315934626,1709291456018,-848.2,0.00021917,2]
[315934627,1709291456027,-5901.44,0.00021917,2]
[315934628,1709291456040,-500.0,0.00021917,2]
[315934629,1709291456050,-730.69,0.00021917,2]
[315934630,1709291456061,-500.0,0.00021917,2]
[315934631,1709291456070,-607.9,0.00021917,2]
[315934632,1709291456079,-1226.01,0.00021917,2]
[315934633,1709291456088,-1138.0,0.00021917,2]
[315934634,1709291456097,-538.89,0.00021917,2]
[315934635,1709291456106,-635.53,0.00021917,2]
[315934636,1709291456115,-1913.76,0.00021917,2]
[315934637,1709291456125,-500.0,0.00021917,2]
[315934638,1709291456134,-500.0,0.00021917,2]
[315934639,1709291456143,-4237.24,0.00021917,2]
[315934640,1709291456152,-10924.54,0.00021917,2]
[315934641,1709291456162,-836.58,0.00021917,2]
[315934642,1709291456171,-500.0,0.00021917,2]
[315934643,1709291456181,-500.0,0.00021917,2]
[315934644,1709291456193,-705.29,0.00021917,2]
[315934645,1709291456203,-1611.42,0.00021917,2]
[315934646,1709291456213,-745.03,0.00021917,2]
[315934647,1709291456222,-1204.06,0.00021917,2]
[315934648,1709291456233,-1725.91,0.00021917,2]
[315934649,1709291456242,-647.12,0.00021917,2]
[315934650,1709291456252,-500.0,0.00021917,2]
[315934651,1709291456262,-500.0,0.00021917,2]
[315934652,1709291456274,-500.0,0.00021917,2]
[315934653,1709291456284,-500.0,0.00021917,2]
[315934654,1709291456294,-1584.72,0.00021917,2]
[315934655,1709291456303,-500.0,0.00021917,2]
[315934656,1709291456312,-696.14,0.00021917,2]
[315934657,1709291456322,-1916.21,0.00021917,2]
[315934658,1709291456332,-190.04,0.00021917,2]
[315934659,1709291456341,-500.0,0.00021917,2]
[315934660,1709291456351,-10510.78,0.00021917,2]
[315934661,1709291456361,-524.57,0.00021917,2]
[315934662,1709291456371,-898.23,0.00021917,2]
[315934663,1709291456381,-153.09,0.00021918,2]
[315934664,1709291456391,-151.46,0.0002198,2]
[315934665,1709291456402,-500.0,0.00021989,2]
[315934666,1709291456412,-1954.25,0.00021989,2]
[315934667,1709291456422,-500.0,0.00021989,2]
[315934668,1709291456431,-982.02,0.00021989,2]
[315934669,1709291456441,-934.31,0.00021989,2]
[315934670,1709291456450,-790.29,0.00021989,2]
[315934671,1709291456460,-1814.73,0.00021989,2]
[315934672,1709291456469,-713.81,0.00021989,2]
[315934673,1709291456479,-1639.05,0.00021989,2]
[315934674,1709291456488,-972.08,0.00021989,2]
[315934675,1709291456497,-1242.35488021,0.00021989,2]
[315934676,1709291456510,-212.03511979,0.00021989,2]
[315934677,1709291456520,-108.85416893,0.00021989,2]
[315934678,1709291456568,-966.30500772,0.00021989,2]
[315934679,1709291457008,-2878.38721278,0.0002,3]
[315934680,1709291457018,-2878.38721278,0.0002,3]
[315934681,1709291457027,-2878.38721278,0.0002,3]
[315934682,1709291457036,-2878.38721278,0.0002,3]
[315934683,1709291457046,-2000.0,0.000215,2]
[315934684,1709291457055,-500.0,0.00021917,2]
[315934685,1709291457064,-1024.29082335,0.00021989,2]
[315934686,1709291457074,-874.93,0.00021989,2]
[315934687,1709291457083,-500.0,0.00021989,2]
[315934688,1709291457092,-1117.18756609,0.0002199,2]
[315934689,1709291457246,-2878.38721278,0.0002,3]
[315934690,1709291457256,-346524.67703391,0.0002199,2]
[315934691,1709291457267,-253.5555,0.0002199,2]
[315934692,1709291457276,-2000.0,0.00022,2]
[315934693,1709291457287,-500.0,0.00022089,2]
[315934694,1709291457296,-500.0,0.0002209,2]
[315934695,1709291457306,-972.33,0.0002209,2]
[315934696,1709291457315,-500.0,0.0002209,2]
[315934697,1709291457325,-6879.73,0.0002209,2]
[315934698,1709291457335,-751.76,0.0002209,2]
[315934699,1709291457345,-500.0,0.0002209,2]
[315934700,1709291457355,-892.71,0.0002209,2]
[315934701,1709291457364,-500.21,0.0002209,2]
[315934702,1709291457374,-596.94,0.0002209,2]
[315934703,1709291457383,-676.1,0.0002209,2]
[315934704,1709291457393,-1467.36,0.0002209,2]
[315934705,1709291457402,-689.06,0.0002209,2]
[315934706,1709291457412,-7457.13,0.0002209,2]
[315934707,1709291457422,-5616.45,0.0002209,2]
[315934708,1709291457431,-500.0,0.0002209,2]
[315934709,1709291457440,-500.0,0.0002209,2]
[315934710,1709291457450,-2314.70860415,0.00022164,2]
[315934711,1709291457460,-404.78472389,0.0002219,2]
[315934712,1709291457469,-500.0,0.0002219,2]
[315934713,1709291457478,-500.0,0.0002219,2]
[315934714,1709291457489,-289.83,0.00022191,2]
[315934715,1709291457500,-500.0,0.00022191,2]
[315934716,1709291457510,-687.54,0.00022191,2]
[315934717,1709291457522,-1080.3,0.00022191,2]
[315934718,1709291457533,-618.27274838,0.00022191,2]
[315934719,1709291457541,-675.42,0.00022191,2]
[315934720,1709291457551,-685.34,0.00022191,2]
[315934721,1709291457562,-1964.07,0.00022191,2]
[315934722,1709291457571,-500.0,0.00022191,2]
[315934723,1709291457580,-3822.58,0.00022191,2]
[315934724,1709291457589,-500.0,0.00022191,2]
[315934725,1709291457598,-1056.43,0.00022191,2]
[315934726,1709291457607,-528.88,0.00022191,2]
[315934727,1709291457617,-563.48,0.00022191,2]
[315934728,1709291457627,-1354.18,0.00022191,2]
[315934729,1709291457636,-2230.92,0.00022191,2]
[315934730,1709291457645,-630.06,0.00022191,2]
[315934731,1709291457654,-1315.5,0.00022191,2]
[315934732,1709291457663,-500.0,0.00022191,2]
[315934733,1709291457673,-1419.42,0.00022191,2]
[315934734,1709291457682,-1388.31,0.00022191,2]
[315934735,1709291457691,-3575.12,0.00022191,2]
[315934736,1709291457700,-2554.41,0.00022191,2]
[315934737,1709291457709,-500.0,0.00022191,2]
[315934738,1709291457722,-563.1,0.00022191,2]
[315934739,1709291457732,-500.0,0.00022191,2]
[315934740,1709291457741,-869.92,0.00022191,2]
[315934741,1709291457752,-836.06,0.00022191,2]
[315934742,1709291457761,-500.0,0.00022191,2]
[315934743,1709291457771,-707.79,0.00022191,2]
[315934744,1709291457780,-500.0,0.00022191,2]
[315934745,1709291457790,-362.49994353,0.00022191,2]
[315934746,1709291457799,-1173.07,0.00022191,2]
[315934747,1709291457808,-2978.5,0.00022191,2]
[315934748,1709291457817,-1395.63,0.00022191,2]
[315934749,1709291457826,-1411.67,0.00022191,2]
[315934750,1709291457837,-500.0,0.00022191,2]
[315934751,1709291457847,-546.78,0.00022191,2]
[315934752,1709291457857,-567.59,0.00022191,2]
[315934753,1709291457867,-1550.99,0.00022191,2]
[315934754,1709291457876,-755.87,0.00022191,2]
[315934755,1709291457885,-1418.7,0.00022191,2]
[315934756,1709291457894,-500.0,0.00022191,2]
[315934757,1709291457903,-500.0,0.00022191,2]